bitfinex/quotes_ETHUSD_20250625
["timestamp","ask_amount","ask_price","bid_price","bid_amount"]
[1750831268399,4.11136119,2432.3,2431.8,1.30751209]
[1750831268695,10.83136119,2432.3,2431.8,1.30751209]
[1750831269122,6.72,2432.3,2431.8,5.41968594]
[1750831269328,6.72,2432.3,2431.8,1.30751209]
[1750831269623,4.11168174,2432.1,2431.6,4.91403007]
[1750831270930,4.11167303,2432.1,2431.4,0.8001]
[1750831271144,14.11195267,2432.0,2431.4,6.65883965]
[1750831271422,4.11206077,2431.9,2431.4,4.91283965]
[1750831271612,4.11206077,2431.9,2431.4,7.08484962]
[1750831271818,14.11191662,2432.0,2431.4,7.08484962]
[1750831272522,14.11191662,2432.0,2431.5,4.11266625]
[1750831273296,10.0,2432.0,2431.6,4.11251741]
[1750831273503,10.0,2432.0,2431.5,4.11259827]
[1750831273730,10.0,2432.0,2431.5,5.40696059]
[1750831274238,6.72,2431.9,2431.5,5.40696059]
[1750831274436,6.72,2431.9,2431.6,4.11250997]
[1750831274742,6.72,2431.9,2431.5,5.40696899]
[1750831275040,6.72,2431.9,2431.6,4.11249948]
[1750831277330,6.72,2432.0,2431.8,4.11215302]
[1750831277733,6.72,2432.1,2432.0,4.11184124]
[1750831278716,10.0,2432.4,2431.9,4.11194066]
[1750831279030,10.0,2432.3,2432.0,4.11183151]
[1750831279932,6.72,2432.4,2432.1,4.11166361]
[1750831280431,10.0,2432.5,2432.1,4.11166361]
[1750831280641,5.67785364,2432.8,2432.1,5.01441288]
[1750831280930,6.719,2432.6,2432.2,0.7929]
[1750831281096,6.719,2432.6,2432.2,4.90425904]
[1750831281298,6.719,2432.6,2432.3,4.11132854]
[1750831281628,6.719,2432.6,2432.2,4.90432113]
[1750831281812,16.719,2432.7,2432.3,0.9918734]
[1750831282015,0.31207504,2432.6,2432.3,5.10319787]
[1750831282212,16.719,2432.7,2432.3,5.10319787]
[1750831282413,0.31207783,2432.6,2432.4,4.11113309]
[1750831282613,6.719,2432.7,2432.5,0.51030065]
[1750831282815,6.719,2432.7,2432.3,5.10314299]
[1750831283107,10.0,2432.7,2432.3,5.10314299]
[1750831285124,10.0,2432.7,2432.4,4.11115207]
[1750831285334,10.0,2432.7,2432.3,5.10312143]
[1750831285713,10.0,2432.7,2432.3,0.9918734]
[1750831285915,14.11066788,2432.7,2432.2,4.90437478]
[1750831287034,14.11066788,2432.7,2432.1,4.11160065]
[1750831287035,4.42296216,2432.6,2432.1,4.11160065]
[1750831287246,4.11092819,2432.6,2432.1,4.11160065]
[1750831287536,14.1107283,2432.7,2432.0,6.65393787]
[1750831287735,0.3120696,2432.6,2432.1,4.77692328]
[1750831287911,4.42290212,2432.6,2432.1,4.77692328]
[1750831288114,4.11082792,2432.6,2432.1,0.66539379]
[1750831288438,6.718,2432.5,2432.0,0.7991]
[1750831288809,10.82910698,2432.5,2432.0,4.91088747]
[1750831289042,11.60810698,2432.5,2432.0,4.91088747]
[1750831289538,4.11117738,2432.4,2432.0,0.7991]
[1750831289742,7.497,2432.5,2432.0,5.98754419]
[1750831290039,6.718,2432.5,2432.2,4.11142458]
[1750831290725,6.717,2432.6,2432.3,0.8197]
[1750831291127,10.82785096,2432.6,2432.3,0.8197]
[1750831291343,6.717,2432.6,2432.3,0.8197]
[1750831291533,6.717,2432.6,2432.3,4.93092381]
[1750831291721,6.717,2432.6,2432.3,0.8197]
[1750831292245,10.82788698,2432.6,2432.1,4.88068743]
[1750831292414,10.82788698,2432.6,2432.1,5.65071813]
[1750831293046,7.4699,2432.6,2432.1,5.65071813]
[1750831293242,7.4699,2432.6,2432.2,4.11148293]
[1750831293445,7.4699,2432.6,2432.1,5.65071957]
[1750831293743,11.58080919,2432.6,2432.1,5.65071957]
[1750831293926,7.4699,2432.6,2432.1,1.5391307]
[1750831294241,4.11104576,2432.5,2432.1,1.5391307]
[1750831294448,7.4699,2432.6,2432.1,5.65079666]
[1750831294648,11.58082555,2432.6,2432.1,5.65079666]
[1750831294853,4.11102535,2432.5,2432.1,1.5391307]
[1750831295153,11.58077697,2432.6,2432.1,5.65078858]
[1750831295361,4.86377697,2432.6,2432.1,5.65078858]
[1750831295522,10.0,2432.6,2432.2,4.11142328]
[1750831295722,10.0,2432.6,2432.1,5.65073977]
[1750831296029,14.11086928,2432.6,2432.1,5.65073977]
[1750831296230,10.0,2432.6,2432.2,4.11150289]
[1750831296727,10.0,2432.7,2432.3,4.11132116]
[1750831296938,20.8266686,2432.7,2432.1,5.65071825]
[1750831297747,4.11083008,2432.6,2432.1,5.65071825]
[1750831297951,0.8157,2432.6,2432.1,0.7691]
[1750831298134,4.11118615,2432.4,2432.1,0.7691]
[1750831298338,4.11118615,2432.4,2432.0,1.743]
[1750831299027,10.82732895,2432.4,2432.0,1.743]
[1750831301028,4.11134405,2432.3,2432.0,1.743]
[1750831301228,4.92274405,2432.3,2432.0,1.743]
[1750831302634,0.8114,2432.3,2432.0,1.743]
[1750831303052,6.716,2432.4,2432.0,7.67932519]
[1750831304036,6.716,2432.4,2432.1,4.11166235]
[1750831304538,4.94336073,2432.7,2432.2,4.1114518]
[1750831304740,7.02724395,2432.6,2432.3,0.8126]
[1750831305058,10.82583743,2432.6,2432.3,0.8126]
[1750831305761,4.11083743,2432.6,2432.3,0.8126]
[1750831306140,0.31240575,2432.5,2432.3,0.8126]
[1750831306341,16.715,2432.7,2432.3,0.8126]
[1750831306542,0.31240825,2432.6,2432.4,4.11104667]
[1750831306759,10.0,2432.7,2432.3,5.41627548]
[1750831306927,0.31267301,2432.6,2432.3,5.41627548]
[1750831307127,10.0,2432.7,2432.3,5.41627548]
[1750831307365,10.0,2432.8,2432.4,4.90385976]
[1750831307671,0.31268973,2432.7,2432.4,4.90385976]
[1750831307863,10.0,2432.8,2432.4,4.90385976]
[1750831308160,0.3126376,2432.7,2432.5,4.11096799]
[1750831308334,10.82519829,2433.0,2432.4,1.7435773]
[1750831308335,14.1103481,2432.9,2432.4,5.85466441]
[1750831308665,0.31264975,2432.8,2432.4,5.85466441]
[1750831308869,0.31264975,2432.7,2432.4,5.85466441]
[1750831309167,14.1103481,2432.9,2432.4,5.85466441]
[1750831309353,0.31266946,2432.8,2432.4,5.85466441]
[1750831309663,0.31266929,2432.7,2432.4,1.7435773]
[1750831309834,10.0,2432.9,2432.4,5.85469801]
[1750831310363,0.31266597,2432.8,2432.4,5.85469801]
[1750831310543,0.31266597,2432.7,2432.4,5.85469801]
[1750831310862,14.11032689,2432.9,2432.4,5.85469801]
[1750831311064,0.31260882,2432.8,2432.4,5.85469801]
[1750831311358,20.82532689,2432.9,2432.4,5.85469801]
[1750831311666,0.31260839,2432.8,2432.4,5.85469801]
[1750831311830,0.31260845,2432.7,2432.4,5.85469801]
[1750831312031,20.82532689,2432.9,2432.4,5.85469801]
[1750831312260,0.31260864,2432.8,2432.4,5.85469801]
[1750831312441,0.31260864,2432.7,2432.4,5.85469801]
[1750831312765,20.82532689,2432.9,2432.4,5.85469801]
[1750831313063,0.31258027,2432.8,2432.4,5.85469801]
[1750831313267,0.31258022,2432.7,2432.4,5.85469801]
[1750831313561,14.11032689,2432.9,2432.5,4.74569362]
[1750831313562,16.714,2432.9,2432.5,4.74569362]
[1750831313768,0.31255132,2432.8,2432.5,0.63471211]
[1750831314064,0.31253871,2432.7,2432.5,0.63471211]
[1750831314243,20.82444741,2432.9,2432.4,1.7435773]
[1750831314442,0.31253734,2432.8,2432.4,0.7928]
[1750831314666,0.31253734,2432.7,2432.4,0.7928]
[1750831314961,20.82444741,2432.9,2432.4,4.90396039]
[1750831315159,0.31254265,2432.8,2432.4,4.90396039]
[1750831315366,1.09353659,2432.7,2432.3,4.11131572]
[1750831315552,0.781,2432.7,2432.3,4.11131572]
[1750831315758,21.60550347,2432.9,2432.3,5.00897607]
[1750831315960,0.31252492,2432.8,2432.3,4.11131572]
[1750831316262,0.31252432,2432.7,2432.5,4.1109743]
[1750831316465,6.714,2432.9,2432.5,4.1109743]
[1750831316668,4.11116592,2432.4,2431.7,0.78]
[1750831316856,7.0264567,2432.3,2431.7,1.8449]
[1750831317047,11.1425567,2432.2,2431.7,0.78]
[1750831317248,4.11186243,2432.0,2431.7,0.78]
[1750831317565,6.714,2432.0,2431.6,4.1125185]
[1750831317769,6.713,2432.0,2431.5,4.88671137]
[1750831317968,4.11203931,2431.9,2431.5,0.7741]
[1750831318169,5.1979035,2431.8,2431.4,1.741]
[1750831318341,0.31219453,2431.7,2431.4,1.741]
[1750831318540,4.88569099,2431.8,2431.4,1.741]
[1750831319341,10.0,2431.9,2431.4,1.741]
[1750831319658,14.11208487,2431.9,2431.4,1.741]
[1750831319861,4.11232066,2431.8,2431.4,1.741]
[1750831321389,10.0,2431.9,2431.4,1.741]
[1750831321570,4.11268764,2431.5,2431.4,1.741]
[1750831321880,4.11260186,2431.6,2431.3,0.7741]
[1750831323561,10.82643358,2431.7,2431.3,0.7741]
[1750831324571,6.714,2431.7,2431.3,0.7741]
[1750831324771,4.11271275,2431.5,2431.1,0.7952]
[1750831325351,6.714,2431.7,2431.1,4.90853278]
[1750831325551,4.11262758,2431.6,2431.1,0.7952]
[1750831325752,4.11262758,2431.6,2431.1,4.90853803]
[1750831325962,6.714,2431.7,2431.1,4.90853803]
[1750831325963,10.82644882,2431.7,2431.1,4.90853803]
[1750831326178,10.82644882,2431.7,2431.1,5.98484284]
[1750831326391,10.82634965,2431.7,2431.1,1.87150481]
[1750831326681,4.11269328,2431.5,2431.1,1.87150481]
[1750831326851,4.11288633,2431.4,2431.1,0.7952]
[1750831327378,4.11276296,2431.5,2431.1,0.7952]
[1750831327882,4.11259614,2431.6,2431.1,4.90856415]
[1750831328179,6.714,2431.6,2431.2,4.11319361]
[1750831328363,6.714,2431.6,2431.3,0.7753]
[1750831329386,10.82651916,2431.6,2431.3,0.7753]
[1750831334104,0.8117,2431.5,2430.9,0.7902]
[1750831334268,4.11329667,2431.2,2430.9,0.7902]
[1750831335387,4.11336726,2431.1,2430.7,0.8078]
[1750831335891,4.11326521,2431.2,2430.7,0.8078]
[1750831336559,4.11337778,2431.1,2430.7,0.8078]
[1750831338274,4.11324584,2431.2,2430.7,0.8078]
[1750831339097,4.11336788,2431.1,2430.7,0.8078]
[1750831339298,6.714,2431.3,2430.7,0.8078]
[1750831339479,4.113551,2431.0,2430.7,0.8078]
[1750831339682,4.11373059,2430.9,2430.7,0.8078]
[1750831340568,6.714,2431.0,2430.7,0.8078]
[1750831340569,10.82759801,2431.0,2430.7,0.8078]
[1750831340896,6.714,2431.0,2430.7,0.8078]
[1750831341098,10.82760595,2431.0,2430.7,0.8078]
[1750831341899,4.11387197,2430.8,2430.7,0.8078]
[1750831342075,8.35845261,2431.0,2430.1,0.7885]
[1750831342275,4.11435362,2430.6,2430.2,1.742]
[1750831342476,4.11417836,2430.7,2430.1,0.7885]
[1750831342794,4.11421048,2430.6,2430.1,0.7885]
[1750831343203,10.82910959,2430.7,2430.1,0.7885]
[1750831343501,10.82816727,2430.7,2430.2,0.783]
[1750831343675,10.82816727,2430.7,2430.2,4.89787777]
[1750831343878,2.41545261,2431.0,2430.2,0.783]
[1750831344081,10.0,2431.0,2430.6,4.94124283]
[1750831344296,10.0,2431.0,2430.7,4.11401547]
[1750831344297,16.715,2431.0,2430.7,4.11401547]
[1750831344804,6.715,2431.0,2430.7,4.11401547]
[1750831345188,4.11337377,2431.1,2430.6,4.941255]
[1750831345393,10.82837377,2431.1,2430.6,4.941255]
[1750831345974,16.715,2431.1,2430.7,4.11403986]
[1750831346175,6.715,2431.1,2430.7,4.11403986]
[1750831346486,6.715,2431.1,2430.6,4.94129092]
[1750831346487,10.0,2431.0,2430.6,0.8271]
[1750831346686,4.11375419,2430.9,2430.6,0.8271]
[1750831347197,14.11359794,2431.0,2430.6,0.8271]
[1750831347405,4.11372625,2430.9,2430.6,0.8271]
[1750831347606,14.11361922,2431.0,2430.6,0.8271]
[1750831347910,16.67496409,2431.0,2430.6,0.8271]
[1750831348718,12.56134487,2431.0,2430.6,0.8271]
[1750831349212,10.0,2431.0,2430.6,4.94129657]
[1750831349397,14.11356001,2431.0,2430.6,0.8271]
[1750831350214,4.11372081,2430.9,2430.6,0.8271]
[1750831350596,6.715,2430.8,2430.3,4.11459792]
[1750831351105,6.715,2430.8,2430.2,4.87396894]
[1750831351310,4.11361976,2431.0,2430.5,0.8006]
[1750831351519,6.715,2430.8,2430.5,0.8006]
[1750831352088,10.82896711,2430.8,2430.3,0.757]
[1750831352290,10.82896711,2430.8,2430.3,4.87170145]
[1750831353081,4.11415636,2430.7,2430.3,0.757]
[1750831353416,4.11415636,2430.7,2429.8,2.43763515]
[1750831353417,11.15976671,2430.7,2429.8,2.43763515]
[1750831353598,4.11505699,2430.1,2429.8,2.43763515]
[1750831353791,7.5056,2430.1,2429.6,0.7826]
[1750831353996,8.25616,2430.1,2429.6,0.7826]
[1750831354204,4.11522633,2430.0,2429.6,0.7826]
[1750831354408,8.25616,2430.1,2429.6,0.7826]
[1750831354721,4.11478242,2430.3,2429.6,0.7826]
[1750831354908,6.716,2430.2,2429.7,4.11559046]
[1750831355308,6.716,2430.2,2429.8,4.11554748]
[1750831355510,6.722,2430.7,2429.9,0.8161]
[1750831355695,11.58905542,2430.7,2430.2,0.8161]
[1750831356017,11.58905542,2430.7,2430.2,4.93097982]
[1750831356212,10.0,2430.6,2430.3,4.11468591]
[1750831357198,10.0,2430.6,2430.2,4.93090646]
[1750831357704,10.0,2430.6,2430.3,4.11469682]
[1750831358124,10.0,2430.6,2430.2,4.93092088]
[1750831359005,14.11422256,2430.6,2430.2,0.8161]
[1750831359601,16.6092324,2430.6,2430.2,0.8161]
[1750831359902,4.11481462,2430.3,2429.8,2.554]
[1750831360106,4.11481462,2430.3,2429.6,6.726]
[1750831360107,4.1150577,2430.1,2429.6,0.813]
[1750831360412,7.4813,2430.2,2429.6,0.813]
[1750831360413,4.11522932,2430.0,2429.6,0.813]
[1750831360614,6.729,2429.9,2429.6,0.813]
[1750831361325,6.729,2429.9,2429.4,0.8133]
[1750831361326,10.84448164,2429.9,2429.4,0.8133]
[1750831361495,6.729,2429.9,2429.5,4.11603961]
[1750831362209,10.84440424,2429.9,2429.4,4.92948556]
[1750831362435,6.729,2429.9,2429.5,4.1159869]
[1750831363236,6.729,2429.9,2429.4,4.92951745]
[1750831363237,10.84440805,2429.9,2429.4,4.9294695]
[1750831363440,10.84440805,2429.9,2429.4,0.8133]
[1750831364639,4.1156043,2429.8,2429.4,0.8133]
[1750831364836,4.1156043,2429.8,2429.3,4.11633132]
[1750831365141,4.11573584,2429.7,2429.2,5.00594017]
[1750831365347,0.8187,2429.8,2429.2,0.889384]
[1750831365545,4.1159492,2429.6,2429.2,0.889384]
[1750831365855,10.84113057,2429.5,2429.2,0.072284]
[1750831366825,4.11625409,2429.4,2429.2,0.072284]
[1750831367021,4.93015409,2429.4,2429.2,0.072284]
[1750831367233,4.11641213,2429.3,2429.2,0.072284]
[1750831367541,0.6714,2429.3,2429.2,0.072284]
[1750831369362,6.728,2429.3,2429.2,0.072284]
[1750831369657,6.726,2429.3,2429.2,0.072284]
[1750831369861,5.17012051,2429.8,2429.2,0.072284]
[1750831369862,11.054548,2429.8,2429.2,0.072284]
[1750831370058,6.726,2429.7,2429.4,4.11614205]
[1750831370277,6.726,2429.7,2429.3,4.1163332]
[1750831370742,0.5,2429.6,2429.2,4.18885102]
[1750831371144,0.5,2429.6,2429.2,0.072284]
[1750831371145,0.771,2429.5,2429.2,0.072284]
[1750831371566,4.88717641,2429.5,2429.2,0.072284]
[1750831371754,0.771,2429.5,2429.2,0.072284]
[1750831371971,4.61598941,2429.6,2429.2,0.072284]
[1750831372176,0.5,2429.6,2429.2,0.072284]
[1750831372381,0.5,2429.6,2429.2,4.18884773]
[1750831372680,0.5,2429.6,2429.3,4.11641012]
[1750831372853,6.742,2429.5,2429.3,4.11641012]
[1750831373646,6.742,2429.5,2429.3,4.11641213]
[1750831373851,0.5,2429.6,2429.5,4.11607326]
[1750831374195,10.10933319,2429.9,2429.5,0.801]
[1750831374361,10.10933319,2429.9,2429.6,4.11589074]
[1750831375956,0.5,2429.8,2429.6,4.11589074]
[1750831376480,0.5,2429.8,2429.5,4.91699004]
[1750831376948,7.246,2429.8,2429.5,4.91699004]
[1750831378282,7.246,2429.8,2429.6,4.11588954]
[1750831378678,0.5,2429.8,2429.6,4.11588954]
[1750831378878,7.244,2429.8,2429.6,5.01913168]
[1750831379092,6.744,2429.8,2429.6,4.11581971]
[1750831379982,6.744,2429.8,2429.7,4.11573445]
[1750831381103,6.74,2429.8,2429.7,4.11573445]
[1750831381675,6.74,2429.8,2429.6,4.11582568]
[1750831381976,6.74,2429.8,2429.7,4.11573445]
[1750831382793,6.74,2429.8,2429.5,4.9170076]
[1750831382987,6.74,2429.8,2429.6,4.11590385]
[1750831383179,6.74,2429.8,2429.7,4.11573445]
[1750831384375,6.736,2429.8,2429.7,4.11573445]
[1750831384775,11.68278193,2429.8,2429.3,0.8313]
[1750831386482,5.87273932,2429.7,2429.2,0.072284]
[1750831386679,4.11605577,2429.6,2429.2,0.072284]
[1750831386875,0.8087,2429.4,2429.2,0.072284]
[1750831387184,4.11641213,2429.3,2429.2,0.072284]
[1750831387891,0.8087,2429.4,2429.2,0.072284]
[1750831388102,6.735,2429.5,2429.2,0.072284]
[1750831388283,10.86026433,2429.4,2429.2,0.072284]
[1750831388902,4.11641213,2429.3,2429.2,0.072284]
[1750831389081,4.91171213,2429.3,2429.2,0.072284]
[1750831389278,14.91171213,2429.3,2429.2,0.072284]
[1750831390813,15.41171213,2429.3,2429.2,0.072284]
[1750831391009,18.15551229,2429.3,2429.2,0.072284]
[1750831392307,18.70551229,2429.3,2429.2,0.072284]
[1750831393701,27.20651229,2429.3,2429.2,0.072284]
[1750831394804,18.70551229,2429.3,2429.2,0.072284]
[1750831394990,27.20551229,2429.3,2429.2,0.072284]
[1750831397088,18.70551229,2429.3,2429.2,0.072284]
[1750831397294,27.20451229,2429.3,2429.2,0.072284]
[1750831399579,17.36021229,2429.3,2429.2,0.072284]
[1750831399784,25.86221229,2429.3,2429.2,0.072284]
[1750831401587,26.66461229,2429.3,2429.2,0.072284]
[1750831402183,27.21461229,2429.3,2429.2,0.072284]
[1750831402988,26.68521229,2429.3,2429.2,0.072284]
[1750831403189,27.23521229,2429.3,2429.2,0.072284]
[1750831403617,18.73621229,2429.3,2429.2,0.072284]
[1750831403816,27.23521229,2429.3,2429.2,0.072284]
[1750831405399,14.06980016,2429.3,2429.2,0.072284]
[1750831405631,18.999,2429.3,2429.2,0.072284]
[1750831405815,23.11541213,2429.3,2429.2,0.072284]
[1750831406130,18.999,2429.3,2429.2,0.072284]
[1750831406431,23.11541213,2429.3,2429.2,0.072284]
[1750831407125,23.11441213,2429.3,2429.2,0.072284]
[1750831407326,25.83748014,2429.3,2429.2,0.072284]
[1750831411109,27.48418837,2429.3,2429.2,0.072284]
[1750831411422,29.18896613,2429.3,2429.2,0.072284]
[1750831411624,29.1889724,2429.3,2429.2,0.072284]
[1750831412710,20.69124766,2429.3,2429.2,0.072284]
[1750831412911,28.63824766,2429.3,2429.2,0.072284]
[1750831413111,29.18824766,2429.3,2429.2,0.072284]
[1750831413342,28.87738704,2429.3,2429.2,0.072284]
[1750831413711,29.18826216,2429.3,2429.2,0.072284]
[1750831414537,29.18829172,2429.3,2429.2,0.072284]
[1750831414742,20.69193981,2429.3,2429.2,0.072284]
[1750831414941,29.18894068,2429.3,2429.2,0.072284]
[1750831415141,27.54128704,2429.3,2429.2,0.072284]
[1750831415345,24.81821903,2429.3,2429.2,0.072284]
[1750831417875,3.9598069,2429.3,2429.2,0.072284]
[1750831418041,20.7038069,2429.3,2429.2,0.072284]
[1750831419064,24.82021903,2429.3,2429.2,0.072284]
[1750831419759,20.7038069,2429.3,2429.2,0.072284]
[1750831422227,24.82021903,2429.3,2429.2,0.072284]
[1750831423142,27.71386629,2429.3,2429.2,0.072284]
[1750831424889,23.59745416,2429.3,2429.2,0.072284]
[1750831425082,20.7038069,2429.3,2429.2,0.072284]
[1750831425465,24.82021903,2429.3,2429.2,0.072284]
[1750831425785,12.2048069,2429.3,2429.2,0.072284]
[1750831425991,20.6958069,2429.3,2429.2,0.072284]
[1750831426165,18.9408069,2429.3,2429.2,0.072284]
[1750831426365,20.6938069,2429.3,2429.2,0.853284]
[1750831426682,24.81021903,2429.3,2429.2,0.072284]
[1750831427382,20.6938069,2429.3,2429.2,0.072284]
[1750831427591,20.6928069,2429.3,2429.2,0.072284]
[1750831428579,24.80921903,2429.3,2429.2,0.072284]
[1750831428984,16.32121903,2429.3,2429.2,0.072284]
[1750831429158,20.6918069,2429.3,2429.2,0.072284]
[1750831430289,12.2048069,2429.3,2429.2,0.072284]
[1750831430490,20.6908069,2429.3,2429.2,0.072284]
[1750831431593,24.80721903,2429.3,2429.2,0.072284]
[1750831432693,20.6908069,2429.3,2429.2,0.072284]
[1750831433999,24.80721903,2429.3,2429.2,0.072284]
[1750831434395,27.6995732,2429.3,2429.2,0.072284]
[1750831434589,28.5238732,2429.3,2429.2,0.072284]
[1750831434788,26.8190663,2429.3,2429.2,0.072284]
[1750831440999,33.95940293,2429.3,2429.2,0.072284]
[1750831442110,1.62810003,2429.5,2429.2,4.96736644]
[1750831442411,6.725,2429.4,2429.2,0.850884]
[1750831444678,6.725,2429.4,2429.2,0.072284]
[1750831444987,15.86141213,2429.3,2429.2,0.072284]
[1750831450733,16.41141213,2429.3,2429.2,0.072284]
[1750831451018,19.37838982,2429.3,2429.2,0.072284]
[1750831451385,17.08338982,2429.3,2429.2,0.072284]
[1750831451590,25.56538982,2429.3,2429.2,0.072284]
[1750831451812,17.08338982,2429.3,2429.2,0.072284]
[1750831452018,25.56538982,2429.3,2429.2,0.072284]
[1750831454033,6.736,2429.3,2429.2,0.072284]
[1750831454242,11.745,2429.4,2429.2,0.072284]
[1750831454415,6.734,2429.3,2429.2,0.072284]
[1750831455014,16.734,2429.3,2429.2,0.072284]
[1750831458445,20.85041213,2429.3,2429.2,0.072284]
[1750831458742,23.68438834,2429.3,2429.2,0.072284]
[1750831467049,16.734,2429.3,2429.2,0.072284]
[1750831467256,10.0,2429.3,2429.2,0.072284]
[1750831467545,16.73,2429.3,2429.2,0.072284]
[1750831469746,6.73,2429.3,2429.2,4.18884248]
[1750831469918,6.73,2429.3,2429.2,4.96314248]
[1750831470113,1.62810003,2429.5,2429.2,4.96314248]
[1750831470114,1.62810003,2429.5,2429.3,4.116331]
[1750831470310,6.73,2429.4,2429.3,4.890831]
[1750831472547,6.732,2429.4,2429.3,4.890831]
[1750831472749,8.35810003,2429.5,2429.4,4.11624269]
[1750831473330,8.35810003,2429.5,2429.3,4.8908261]
[1750831473518,8.35810003,2429.5,2429.4,0.9987624]
[1750831473918,8.35810003,2429.5,2429.3,4.8908261]
[1750831476646,8.35810003,2429.5,2429.4,4.11624269]
[1750831477049,8.35910003,2429.5,2429.4,4.11624269]
[1750831477430,1.62810003,2429.5,2429.4,4.11624269]
[1750831477648,8.35810003,2429.5,2429.4,4.11624269]
[1750831477947,8.35810003,2429.5,2429.4,0.90795439]
[1750831478124,8.35810003,2429.5,2429.4,5.02419708]
[1750831478325,1.62810003,2429.5,2429.4,5.02419708]
[1750831478524,8.35710003,2429.5,2429.4,5.02419708]
[1750831478826,1.62810003,2429.5,2429.4,0.90795439]
[1750831479032,8.35710003,2429.5,2429.3,0.7745]
[1750831481960,8.35710003,2429.5,2429.2,0.072284]
[1750831482367,12.47318878,2429.5,2429.2,0.072284]
[1750831482538,10.84508875,2429.5,2429.2,0.072284]
[1750831485485,6.729,2429.5,2429.2,0.072284]
[1750831486550,4.92812676,2429.8,2429.3,0.827]
[1750831486551,0.8125,2429.8,2429.3,0.827]
[1750831486745,16.725,2429.7,2429.3,4.94340967]
[1750831486950,6.725,2429.6,2429.3,4.94340967]
[1750831487148,10.0,2429.7,2429.4,4.11612617]
[1750831487352,6.725,2429.6,2429.3,4.94335969]
[1750831487577,6.725,2429.6,2429.3,0.827]
[1750831488076,9.99713911,2429.6,2429.2,0.072284]
[1750831488281,4.11612389,2429.5,2429.2,0.072284]
[1750831488977,4.11624916,2429.4,2429.2,0.072284]
[1750831489177,6.725,2429.3,2429.2,0.072284]
[1750831497785,21.92553792,2429.3,2429.2,0.072284]
[1750831497959,22.71663792,2429.3,2429.2,0.072284]
[1750831501789,23.23993792,2429.3,2429.2,0.072284]
[1750831502163,16.51493792,2429.3,2429.2,0.072284]
[1750831502463,24.43493792,2429.3,2429.2,0.072284]
[1750831503062,31.57589346,2429.3,2429.2,0.072284]
[1750831504078,16.51493792,2429.3,2429.2,0.072284]
[1750831504260,24.98793792,2429.3,2429.2,0.072284]
[1750831504683,24.43793792,2429.3,2429.2,0.072284]
[1750831504994,15.96493792,2429.3,2429.2,0.072284]
[1750831505158,23.35481213,2429.3,2429.2,0.072284]
[1750831506690,23.90481213,2429.3,2429.2,0.072284]
[1750831508764,15.43081213,2429.3,2429.2,0.072284]
[1750831509163,23.90581213,2429.3,2429.2,0.072284]
[1750831509665,14.88081213,2429.3,2429.2,0.072284]
[1750831509865,23.35481213,2429.3,2429.2,0.072284]
[1750831510060,25.08013086,2429.3,2429.2,0.072284]
[1750831510272,16.60613086,2429.3,2429.2,0.072284]
[1750831510518,14.11641213,2429.3,2429.2,0.072284]
[1750831510797,20.84541213,2429.3,2429.2,0.072284]
[1750831510998,14.11641213,2429.3,2429.2,0.072284]
[1750831511166,20.84441213,2429.3,2429.2,0.072284]
[1750831512196,14.11641213,2429.3,2429.2,0.072284]
[1750831512400,20.84441213,2429.3,2429.2,0.072284]
[1750831512779,14.11641213,2429.3,2429.2,0.072284]
[1750831512980,20.84341213,2429.3,2429.2,0.072284]
[1750831513293,14.11641213,2429.3,2429.2,0.072284]
[1750831513469,20.84241213,2429.3,2429.2,0.072284]
[1750831513669,14.11641213,2429.3,2429.2,0.072284]
[1750831513871,20.84241213,2429.3,2429.2,0.072284]
[1750831515109,16.726,2429.3,2429.2,0.072284]
[1750831515404,14.11641213,2429.3,2429.2,0.072284]
[1750831515609,20.84241213,2429.3,2429.2,0.072284]
[1750831515978,16.726,2429.3,2429.2,0.072284]
[1750831516815,10.0,2429.3,2429.2,0.072284]
[1750831516973,16.726,2429.3,2429.2,0.072284]
[1750831517678,10.0,2429.3,2429.2,0.072284]
[1750831517899,16.726,2429.3,2429.2,0.072284]
[1750831518675,6.726,2429.3,2429.2,0.072284]
[1750831518880,6.726,2429.3,2429.2,1.25078666]
[1750831520805,6.726,2429.3,2429.2,0.831884]
[1750831521000,6.726,2429.3,2429.2,0.072284]
[1750831521332,10.84241213,2429.3,2429.2,0.072284]
[1750831522888,20.84241213,2429.3,2429.2,0.072284]
[1750831528039,0.828,2429.8,2429.2,0.827784]
[1750831528245,4.11617603,2429.5,2429.2,0.827784]
[1750831528425,16.725,2429.4,2429.2,0.827784]
[1750831528615,6.725,2429.5,2429.2,0.827784]
[1750831528815,6.725,2429.6,2429.2,0.827784]
[1750831529018,4.11608242,2429.5,2429.2,0.827784]
[1750831529216,10.84133506,2429.4,2429.2,0.827784]
[1750831529431,10.84133506,2429.4,2429.2,0.072284]
[1750831529632,4.11641213,2429.3,2429.2,0.072284]
[1750831530948,10.8413269,2429.4,2429.2,0.072284]
[1750831531573,4.11641213,2429.3,2429.2,0.072284]
[1750831532076,6.725,2429.4,2429.2,0.072284]
[1750831532438,4.11563043,2429.8,2429.2,0.072284]
[1750831532753,6.733,2429.7,2429.3,4.90090439]
[1750831532957,10.0,2429.6,2429.3,4.90090439]
[1750831533161,6.733,2429.5,2429.3,4.90090439]
[1750831533360,6.733,2429.5,2429.4,4.11624269]
[1750831533536,14.11549354,2429.9,2429.4,4.11624269]
[1750831533737,16.732,2429.8,2429.4,4.11624269]
[1750831533942,6.732,2429.7,2429.4,5.02520027]
[1750831534143,6.732,2429.7,2429.4,0.90895758]
[1750831534644,6.732,2429.7,2429.4,5.02519343]
[1750831535882,6.59095554,2430.3,2429.4,5.02519343]
[1750831535883,2.5469,2430.6,2429.6,0.7845]
[1750831536043,10.84516067,2430.1,2429.6,0.7845]
[1750831536243,10.84516067,2430.1,2429.6,4.90037542]
[1750831536885,10.84516067,2430.1,2429.6,0.7845]
[1750831537391,10.84516067,2430.1,2429.6,4.90039598]
[1750831538096,6.73,2430.1,2429.6,4.90039598]
[1750831538267,6.73,2430.1,2429.6,5.80204286]